fUSD/lending_fUSD_20250716
["ID","MTS","AMOUNT","RATE_DAILY","PERIOD"]
[372610616,1752702655662,-474.49,0.00019708,2]
[372610618,1752702655672,-603.99,0.00019708,2]
[372610620,1752702655682,-296.53341431,0.00019708,2]
[372610622,1752702655691,-460.0,0.00019708,2]
[372610624,1752702655701,-725.02,0.00019708,2]
[372610626,1752702655710,-3453.34,0.00019708,2]
[372610628,1752702655720,-490.0,0.00019708,2]
[372610630,1752702655730,-1600.38,0.00019708,2]
[372610632,1752702655740,-460.0,0.00019708,2]
[372610634,1752702655749,-460.0,0.00019708,2]
[372610636,1752702655759,-1871.54,0.00019708,2]
[372610639,1752702655768,-460.0,0.00019708,2]
[372610641,1752702655778,-795.44,0.00019708,2]
[372610643,1752702655787,-1427.32,0.00019708,2]
[372610645,1752702655797,-460.0,0.00019708,2]
[372610646,1752702655806,-608.65,0.00019708,2]
[372610648,1752702655815,-1345.64,0.00019708,2]
[372610650,1752702655825,-1804.33,0.00019708,2]
[372610653,1752702655835,-460.0,0.00019708,2]
[372610654,1752702655844,-460.0,0.00019708,2]
[372610656,1752702655854,-499.88,0.00019708,2]
[372610658,1752702655863,-460.0,0.00019708,2]
[372610660,1752702655872,-460.0,0.00019708,2]
[372610663,1752702655882,-2171.92,0.00019708,2]
[372610664,1752702655891,-460.0,0.00019708,2]
[372610666,1752702655900,-1959.4,0.00019708,2]
[372610668,1752702655910,-8720.6,0.00019708,2]
[372610670,1752702655919,-460.0,0.00019708,2]
[372610673,1752702655929,-460.0,0.00019708,2]
[372610674,1752702655939,-867.11,0.00019708,2]
[372610676,1752702655949,-509.35,0.00019708,2]
[372610679,1752702655958,-460.0,0.00019708,2]
[372610681,1752702655969,-995.6,0.00019708,2]
[372610682,1752702655979,-1355.93,0.00019708,2]
[372610684,1752702655990,-460.0,0.00019708,2]
[372610687,1752702656001,-460.0,0.00019708,2]
[372610689,1752702656011,-574.77,0.00019708,2]
[372610691,1752702656020,-460.0,0.00019708,2]
[372610692,1752702656030,-1711.85,0.00019708,2]
[372610694,1752702656039,-460.0,0.00019708,2]
[372610697,1752702656048,-726.18,0.00019708,2]
[372610698,1752702656058,-460.0,0.00019708,2]
[372610701,1752702656068,-993.72,0.00019708,2]
[372610703,1752702656077,-2507.2,0.00019708,2]
[372610704,1752702656087,-151.0,0.00019708,2]
[372610706,1752702656097,-1502.86,0.00019708,2]
[372610709,1752702656107,-642.87,0.00019708,2]
[372610711,1752702656116,-9673.38,0.00019708,2]
[372610713,1752702656127,-3399.74,0.00019708,2]
[372610715,1752702656137,-460.0,0.00019708,2]
[372610717,1752702656146,-2383.34,0.00019708,2]
[372610718,1752702656157,-2419.58,0.00019708,2]
[372610721,1752702656171,-1093.39,0.00019708,2]
[372610723,1752702656181,-460.0,0.00019708,2]
[372610725,1752702656191,-592.66,0.00019708,2]
[372610727,1752702656200,-460.0,0.00019708,2]
[372610729,1752702656210,-460.0,0.00019708,2]
[372610731,1752702656220,-460.0,0.00019708,2]
[372610733,1752702656229,-778.67,0.00019708,2]
[372610735,1752702656239,-460.0,0.00019708,2]
[372610737,1752702656249,-151.0,0.00019708,2]
[372610739,1752702656258,-805.2,0.00019708,2]
[372610741,1752702656269,-611.97,0.00019708,2]
[372610743,1752702656278,-460.0,0.00019708,2]
[372610745,1752702656289,-692.83,0.00019708,2]
[372610747,1752702656298,-1968.35,0.00019708,2]
[372610749,1752702656308,-1668.41,0.00019708,2]
[372610751,1752702656318,-460.0,0.00019708,2]
[372610753,1752702656328,-460.0,0.00019708,2]
[372610755,1752702656338,-790.29,0.00019708,2]
[372610757,1752702656348,-936.53,0.00019708,2]
[372610759,1752702656357,-460.0,0.00019708,2]
[372610761,1752702656367,-460.0,0.00019708,2]
[372610763,1752702656376,-2124.97,0.00019708,2]
[372610765,1752702656385,-151.0,0.00019708,2]
[372610767,1752702656395,-1986.24,0.00019708,2]
[372610769,1752702656404,-460.0,0.00019708,2]
[372610771,1752702656417,-460.0,0.00019708,2]
[372610773,1752702656427,-460.0,0.00019708,2]
[372610775,1752702656436,-460.0,0.00019708,2]
[372610777,1752702656445,-528.0,0.00019708,2]
[372610779,1752702656456,-905.68,0.00019708,2]
[372610781,1752702656465,-760.7,0.00019708,2]
[372610783,1752702656475,-9585.83,0.00019708,2]
[372610785,1752702656485,-460.0,0.00019708,2]
[372610787,1752702656494,-710.75,0.00019708,2]
[372610789,1752702656504,-1462.37,0.00019708,2]
[372610791,1752702656513,-460.0,0.00019708,2]
[372610793,1752702656523,-490.34,0.00019708,2]
[372610795,1752702656532,-460.0,0.00019708,2]
[372610797,1752702656541,-1299.57,0.00019708,2]
[372610799,1752702656551,-1433.65,0.00019708,2]
[372610801,1752702656560,-538.86,0.00019708,2]
[372610803,1752702656570,-829.54,0.00019708,2]
[372610805,1752702656579,-751.15,0.00019708,2]
[372610807,1752702656588,-527.53,0.00019708,2]
[372610809,1752702656598,-460.0,0.00019708,2]
[372610811,1752702656607,-460.0,0.00019708,2]
[372610813,1752702656616,-560.46,0.00019708,2]
[372610815,1752702656625,-460.0,0.00019708,2]
[372610817,1752702656635,-460.0,0.00019708,2]
[372610820,1752702656645,-6468.26,0.00019708,2]
[372610822,1752702656655,-460.0,0.00019708,2]
[372610824,1752702656665,-460.0,0.00019708,2]
[372610826,1752702656674,-460.0,0.00019708,2]
[372610827,1752702656683,-1650.7,0.00019708,2]
[372610828,1752702656693,-460.0,0.00019708,2]
[372610829,1752702656703,-151.0,0.00019708,2]
[372610830,1752702656712,-1023.25,0.00019708,2]
[372610831,1752702656722,-460.0,0.00019708,2]
[372610832,1752702656731,-2150.27,0.00019708,2]
[372610833,1752702656740,-1422.38,0.00019708,2]
[372610834,1752702656750,-3303.42,0.00019708,2]
[372610835,1752702656759,-7666.82,0.00019708,2]
[372610836,1752702656768,-460.0,0.00019708,2]
[372610838,1752702656778,-1963.3,0.00019708,2]
[372610840,1752702656787,-1614.48,0.00019708,2]
[372610842,1752702656797,-2435.46,0.00019708,2]
[372610844,1752702656807,-460.0,0.00019708,2]
[372610846,1752702656816,-460.0,0.00019708,2]
[372610848,1752702656826,-460.0,0.00019708,2]
[372610850,1752702656835,-4834.2,0.00019708,2]
[372610852,1752702656844,-1151.65,0.00019708,2]
[372610854,1752702656854,-2497.23,0.00019708,2]
[372610856,1752702656863,-548.69,0.00019708,2]
[372610858,1752702656873,-460.0,0.00019708,2]
[372610860,1752702656882,-1447.59,0.00019708,2]
[372610862,1752702656891,-934.48,0.00019708,2]
[372610864,1752702656901,-460.0,0.00019708,2]
[372610866,1752702656910,-740.42,0.00019708,2]
[372610868,1752702656919,-2468.74,0.00019708,2]
[372610870,1752702656929,-1046.8,0.00019708,2]
[372610872,1752702656938,-1018.38,0.00019708,2]
[372610874,1752702656948,-460.0,0.00019708,2]
[372610876,1752702656957,-3291.91,0.00019708,2]
[372610878,1752702656967,-3434.04,0.00019708,2]
[372610880,1752702656976,-851.04,0.00019708,2]
[372610882,1752702656986,-460.0,0.00019708,2]
[372610884,1752702656995,-460.0,0.00019708,2]
[372610886,1752702657004,-460.0,0.00019708,2]
[372610888,1752702657014,-277.88073208,0.00019708,2]
[372610890,1752702657023,-8379.41,0.00019708,2]
[372610892,1752702657034,-460.0,0.00019708,2]
[372610894,1752702657043,-734.83,0.00019708,2]
[372610896,1752702657053,-548.3,0.00019708,2]
[372610898,1752702657063,-460.0,0.00019708,2]
[372610900,1752702657072,-1124.59,0.00019708,2]
[372610902,1752702657083,-460.0,0.00019708,2]
[372610904,1752702657093,-460.0,0.00019708,2]
[372610906,1752702657103,-699.61,0.00019708,2]
[372610908,1752702657112,-539.99,0.00019708,2]
[372610910,1752702657122,-740.28,0.00019708,2]
[372610912,1752702657131,-460.0,0.00019708,2]
[372610914,1752702657141,-151.0,0.00019708,2]
[372610916,1752702657150,-629.69,0.00019708,2]
[372610918,1752702657163,-460.0,0.00019708,2]
[372610920,1752702657172,-44452.93,0.00019708,2]
[372610922,1752702657181,-460.0,0.00019708,2]
[372610924,1752702657191,-4275.77,0.00019708,2]
[372610926,1752702657201,-2251.63,0.00019708,2]
[372610928,1752702657211,-460.0,0.00019708,2]
[372610930,1752702657221,-1280.32,0.00019708,2]
[372610931,1752702657230,-473.77,0.00019708,2]
[372610933,1752702657240,-460.0,0.00019708,2]
[372610936,1752702657250,-2031.79,0.00019708,2]
[372610937,1752702657260,-460.0,0.00019708,2]
[372610940,1752702657269,-4382.24,0.00019708,2]
[372610942,1752702657279,-504.57,0.00019708,2]
[372610944,1752702657289,-460.0,0.00019708,2]
[372610946,1752702657298,-151.0,0.00019708,2]
[372610948,1752702657308,-566.06,0.00019708,2]
[372610949,1752702657318,-2009.24,0.00019708,2]
[372610951,1752702657328,-2111.07,0.00019708,2]
[372610953,1752702657338,-1264.68,0.00019708,2]
[372610956,1752702657349,-859.15,0.00019708,2]
[372610958,1752702657359,-1924.74,0.00019708,2]
[372610960,1752702657369,-151.0,0.00019708,2]
[372610962,1752702657379,-208.998729,0.00019708,2]
[372610964,1752702657389,-546.84,0.00019708,2]
[372610966,1752702657399,-151.0,0.00019708,2]
[372610968,1752702657409,-151.0,0.00019708,2]
[372610970,1752702657419,-279.13633007,0.00019708,2]
[372610972,1752702657429,-1431.68,0.00019708,2]
[372610974,1752702657439,-1468.17,0.00019708,2]
[372610975,1752702657449,-460.0,0.00019708,2]
[372610978,1752702657459,-208.998729,0.00019708,2]
[372610980,1752702657469,-1800.73,0.00019708,2]
[372610982,1752702657479,-2146.44,0.00019708,2]
[372610984,1752702657489,-8105.43,0.00019708,2]
[372610985,1752702657498,-418.5692635,0.00019708,2]
[372610988,1752702657511,-1314.61,0.00019708,2]
[372610990,1752702657520,-460.0,0.00019708,2]
[372610991,1752702657530,-803.68,0.00019708,2]
[372610993,1752702657541,-1423.54,0.00019708,2]
[372610995,1752702657551,-460.0,0.00019708,2]
[372610997,1752702657561,-151.0,0.00019708,2]
[372610999,1752702657570,-552.97,0.00019708,2]
[372611002,1752702657580,-460.0,0.00019708,2]
[372611004,1752702657590,-6036.86,0.00019708,2]
[372611005,1752702657599,-933.55,0.00019708,2]
[372611007,1752702657609,-2026.14,0.00019708,2]
[372611010,1752702657619,-460.0,0.00019708,2]
[372611012,1752702657628,-1957.32,0.00019708,2]
[372611014,1752702657638,-191.6267128,0.00019708,2]
[372611016,1752702657648,-460.0,0.00019708,2]
[372611017,1752702657657,-460.0,0.00019708,2]
[372611018,1752702657667,-1054.69,0.00019708,2]
[372611020,1752702657677,-1050.7,0.00019708,2]
[372611022,1752702657687,-688.55,0.00019708,2]
[372611024,1752702657697,-460.0,0.00019708,2]
[372611026,1752702657707,-460.0,0.00019708,2]
[372611028,1752702657717,-2298.05,0.00019708,2]
[372611029,1752702657726,-460.0,0.00019708,2]
[372611030,1752702657736,-1022.93,0.00019708,2]
[372611031,1752702657746,-460.0,0.00019708,2]
[372611032,1752702657755,-463.88144004,0.00019708,2]
[372611033,1752702657765,-1935.4,0.00019708,2]
[372611034,1752702657775,-3572.52,0.00019708,2]
[372611035,1752702657785,-795.61,0.00019708,2]
[372611036,1752702657795,-1029.39,0.00019708,2]
[372611037,1752702657805,-491.63,0.00019708,2]
[372611038,1752702657815,-460.0,0.00019708,2]
[372611039,1752702657825,-460.0,0.00019708,2]
[372611040,1752702657834,-2248.95,0.00019708,2]
[372611041,1752702657844,-2192.18,0.00019708,2]
[372611042,1752702657854,-460.0,0.00019708,2]
[372611043,1752702657864,-650.49,0.00019708,2]
[372611044,1752702657874,-460.0,0.00019708,2]
[372611045,1752702657884,-460.0,0.00019708,2]
[372611046,1752702657894,-860.73,0.00019708,2]
[372611047,1752702657904,-460.0,0.00019708,2]
[372611048,1752702657914,-600.3,0.00019708,2]
[372611049,1752702657925,-821.27,0.00019708,2]
[372611050,1752702657935,-1720.99,0.00019708,2]
[372611051,1752702657945,-11293.68,0.00019708,2]
[372611052,1752702657955,-795.55,0.00019708,2]
[372611053,1752702658120,-460.0,0.00019708,2]
[372611054,1752702658129,-1143.68,0.00019708,2]
[372611055,1752702658139,-637.01,0.00019708,2]
[372611056,1752702658149,-704.59,0.00019708,2]
[372611057,1752702658159,-460.0,0.00019708,2]
[372611058,1752702658171,-151.0,0.00019708,2]
[372611059,1752702658181,-460.0,0.00019708,2]
[372611060,1752702658190,-3905.73,0.00019708,2]
[372611061,1752702658200,-2799.9,0.00019708,2]
[372611062,1752702658210,-460.0,0.00019708,2]
[372611063,1752702658220,-1469.8,0.00019708,2]
[372611064,1752702658229,-530.65,0.00019708,2]
[372611065,1752702658241,-2269.84,0.00019708,2]
[372611066,1752702658459,-460.0,0.00019708,2]
[372611067,1752702658470,-1411.42,0.00019708,2]
[372611068,1752702658480,-741.63,0.00019708,2]
[372611069,1752702658490,-151.0,0.00019708,2]
[372611070,1752702658499,-937.03,0.00019708,2]
[372611071,1752702658509,-604.89,0.00019708,2]
[372611072,1752702658519,-3105.39,0.00019708,2]
[372611073,1752702658528,-918.67,0.00019708,2]
[372611074,1752702658538,-460.0,0.00019708,2]
[372611075,1752702658549,-2333.08,0.00019708,2]
[372611076,1752702658558,-151.0,0.00019708,2]
[372611077,1752702658568,-294.263828,0.00019708,2]
[372611078,1752702658577,-460.0,0.00019708,2]
[372611079,1752702658587,-6459.22,0.00019708,2]
[372611080,1752702658596,-460.0,0.00019708,2]
[372611081,1752702658605,-2454.05,0.00019708,2]
[372611082,1752702658615,-1141.53,0.00019708,2]
[372611083,1752702658624,-538.57,0.00019708,2]
[372611084,1752702658635,-460.0,0.00019708,2]
[372611085,1752702658644,-460.0,0.00019708,2]
[372611086,1752702658653,-913.66,0.00019708,2]
[372611087,1752702658662,-1453.97,0.00019708,2]
[372611088,1752702658672,-1629.79,0.00019708,2]
[372611089,1752702658681,-1422.14,0.00019708,2]
[372611090,1752702658691,-607.2,0.00019708,2]
[372611091,1752702658700,-460.0,0.00019708,2]
[372611092,1752702658711,-3708.17933551,0.00019708,2]
[372611093,1752702659373,-1212.77066449,0.00019708,2]
[372611094,1752702659383,-358.1107488,0.00019708,2]
[372611095,1752702659419,-101.8892512,0.00019708,2]
[372611096,1752702659428,-818.1107488,0.00019708,2]
[372611097,1752702659440,-1183.2392512,0.00019708,2]
[372611098,1752702659450,-493.92664724,0.00019708,2]
[372611099,1752702659461,-460.0,0.00019708,2]
[372611100,1752702659471,-1186.96,0.00019708,2]
[372611101,1752702659481,-269.67784916,0.00019708,2]
[372611102,1752702659490,-1199.86935221,0.00019708,2]
[372611103,1752702660488,-738.42260034,0.00019555,2]
[372611104,1752702660498,-1009.27417536,0.00019571,2]
[372611105,1752702660586,-411.64582464,0.00019571,2]
[372611106,1752702660596,-996.87478578,0.00019571,2]
[372611107,1752702660614,-1690.62045195,0.00019571,2]
[372611108,1752702660744,-494.99999995,0.00019571,2]
[372611109,1752702660756,-410.5053786,0.00019571,2]
[372611111,1752702661754,-183.03340521,0.00019507,2]
[372611112,1752702661765,-306.27521985,0.00019507,2]
[372611113,1752702661776,-170.24737041,0.00019507,2]
[372611114,1752702661787,-85.69309331,0.00019507,2]
[372611115,1752702661798,-399.61190669,0.00019571,2]
[372611116,1752702663148,-146.89747703,0.00019571,2]
[372611117,1752702663160,-460.0,0.00019571,2]
[372611118,1752702663175,-460.0,0.00019571,2]
[372611119,1752702663185,-460.0,0.00019571,2]
[372611120,1752702663195,-3162.9,0.00019571,2]
[372611121,1752702663205,-460.0,0.00019571,2]
[372611122,1752702663215,-460.0,0.00019571,2]
[372611123,1752702663225,-1502.86,0.00019571,2]
[372611124,1752702663235,-1285.23955147,0.00019626,2]
[372611125,1752702663250,-439.76517404,0.00019626,2]
[372611126,1752702663261,-2035.92647066,0.00019626,2]
[372611127,1752702663333,-3079.5259,0.00019626,2]
[372611128,1752702663345,-2537.40744808,0.00019626,2]
[372611129,1752702663356,-5077.56274759,0.00019626,2]
[372611130,1752702663543,-2020.03724291,0.00019626,2]
[372611131,1752702663553,-11359.06275709,0.00019669,2]
[372611134,1752702793896,1000.0,0.00017835,2]
[372611143,1752703113913,389.41,0.00013699,2]
[372611145,1752703125785,190.0,0.00018063,7]
[372611146,1752703157106,600.28,0.00018074,2]
[372611148,1752703227137,609.36,0.00018082,2]
[372611149,1752703228261,1000.0,0.00018082,2]
[372611150,1752703233678,166.48,0.00018082,2]
[372611151,1752703405536,250.0,0.00018062,2]
[372611152,1752703439090,518.0,0.00017212,2]
[372611153,1752703540070,5192.04266574,0.00018,5]
[372611154,1752703540092,3596.87942134,0.00018,5]
[372611155,1752703605182,500.0,0.00023101,30]
[372611156,1752703683012,407.49535377,0.0002002,30]
[372611181,1752703832546,-362.03310029,0.00018175,2]
[372611182,1752703832559,-837.96689971,0.00018175,2]
[372611183,1752703832570,-300.0,0.00018176,2]
[372611184,1752703832580,-300.0,0.00018176,2]
[372611185,1752703832590,-1000.0,0.00018176,2]
[372611186,1752703832602,-250.0,0.00018176,2]
[372611187,1752703832611,-773.41310029,0.00018176,2]
[372611189,1752703837448,-226.58689971,0.00018176,2]
[372611190,1752703837458,-72.28810029,0.00018176,2]
[372611191,1752703837580,-77.71189971,0.00018176,2]
[372611192,1752703837590,-300.0,0.00018176,2]
[372611193,1752703837599,-3038.92019926,0.00018177,2]
[372611373,1752703839700,-885.77415248,0.00018177,2]
[372611375,1752703839712,-19975.30564826,0.00018177,2]
[372611377,1752703839721,-156.16124371,0.000182,2]
[372611379,1752703839731,-705.82,0.00018241,2]
[372611381,1752703839741,-999.99,0.00018241,2]
[372611383,1752703839750,-8139.67,0.00018241,2]
[372611385,1752703839766,-5967.66,0.00018241,2]
[372611387,1752703839776,-1144.43,0.00018241,2]
[372611389,1752703839785,-9999.99,0.00018241,2]
[372611391,1752703839795,-1187.12,0.00018273,2]
[372611393,1752703839804,-150.99,0.00018273,2]
[372611395,1752703839820,-150.0,0.00018307,2]
[372611397,1752703839830,-733.27,0.00018307,2]
[372611399,1752703839839,-315.36,0.00018329,2]
[372611401,1752703839851,-629.88969867,0.00018361,2]
[372611403,1752703839863,-597.05030133,0.00018361,2]
[372611405,1752703839873,-1082.0,0.00018413,2]
[372611407,1752703839883,-5402.87697025,0.00018543,2]
[372611409,1752703839892,-167.18,0.00018603,2]
[372611411,1752703839902,-250.0,0.00018621,2]
[372611413,1752703839911,-1743.08,0.0001866,2]
[372611415,1752703839921,-1200.0,0.0001866,2]
[372611417,1752703839931,-169.13,0.00018785,2]
[372611419,1752703839940,-207.4,0.00018853,2]
[372611421,1752703839950,-4031.856,0.00018853,2]
[372611423,1752703839959,-500.0,0.00018853,2]
[372611425,1752703839969,-1000.0,0.00018853,2]
[372611427,1752703839978,-500.0,0.00018853,2]
[372611429,1752703839988,-401.19111454,0.00018853,2]
[372611431,1752703839998,-500.0,0.00018853,2]
[372611433,1752703840007,-983.50865704,0.00018853,2]
[372611435,1752703840017,-248.5940893,0.00018853,2]
[372611437,1752703840026,-500.0,0.00018853,2]
[372611439,1752703840035,-213.96859442,0.00018853,2]
[372611441,1752703840045,-500.0,0.00018853,2]
[372611443,1752703840054,-500.0,0.00018853,2]
[372611445,1752703840064,-500.0,0.00018853,2]
[372611447,1752703840073,-300.0,0.00018853,2]
[372611449,1752703840083,-424.9457801,0.00018853,2]
[372611451,1752703840092,-300.0,0.00018853,2]
[372611453,1752703840103,-300.0,0.00018853,2]
[372611455,1752703840112,-300.0,0.00018853,2]
[372611457,1752703840121,-300.0,0.00018853,2]
[372611459,1752703840131,-151.0,0.00018853,2]
[372611461,1752703840140,-151.0,0.00018853,2]
[372611463,1752703840149,-151.0,0.00018853,2]
[372611465,1752703840159,-151.0,0.00018853,2]
[372611467,1752703840169,-151.0,0.00018853,2]
[372611469,1752703840179,-151.0,0.00018853,2]
[372611471,1752703840188,-151.0,0.00018853,2]
[372611473,1752703840198,-151.0,0.00018853,2]
[372611475,1752703840208,-151.0,0.00018853,2]
[372611477,1752703840217,-151.0,0.00018853,2]
[372611479,1752703840227,-276.80262847,0.00018853,2]
[372611481,1752703840237,-1000.0,0.00018882,2]
[372611483,1752703840246,-4181.034672,0.00018908,2]
[372611485,1752703840255,-191.58,0.0001894,2]
[372611487,1752703840265,-600.0,0.00018951,2]
[372611489,1752703840274,-600.0,0.00018951,2]
[372611491,1752703840284,-4335.73295486,0.00018963,2]
[372611493,1752703840294,-1231.36926636,0.00018987,2]
[372611495,1752703840303,-315.36,0.00019016,2]
[372611497,1752703840312,-4496.15507419,0.00019018,2]
[372611499,1752703840322,-533.0,0.00019038,2]
[372611501,1752703840332,-4615.0854979,0.00019073,2]
[372611503,1752703840342,-451.24014942,0.00019118,2]
[372611505,1752703840355,-533.0,0.00019136,2]
[372611507,1752703840364,-533.0,0.00019143,2]
[372611509,1752703840374,-3022.0,0.00019178,2]
[372611511,1752703840383,-157.5,0.00019178,2]
[372611513,1752703840393,-533.0,0.00019183,2]
[372611515,1752703840402,-1093.85057174,0.00019201,2]
[372611517,1752703840412,-1177.0,0.00019289,2]
[372611519,1752703840421,-2801.06592204,0.000193,2]
[372611521,1752703840430,-1177.0,0.00019305,2]
[372611523,1752703840440,-5888.0,0.00019346,2]
[372611525,1752703840450,-2801.06592195,0.00019367,2]
[372611527,1752703840459,-1082.0,0.00019382,2]
[372611529,1752703840469,-2500.0,0.00019399,2]
[372611531,1752703840479,-22508.7901,0.000194,2]
[372611533,1752703840489,-630.6144,0.000194,2]
[372611535,1752703840498,-600.0,0.000194,7]
[372611537,1752703840508,-8425.61108401,0.000194,2]
[372611539,1752703840518,-613.71695409,0.000194,2]
[372611541,1752703840528,-10000.0,0.00019408,2]
[372611543,1752703840541,-580.18,0.00019408,2]
[372611545,1752703840551,-533.0,0.00019408,2]
[372611547,1752703840560,-3484.17357044,0.00019411,2]
[372611549,1752703840571,-533.0,0.00019426,2]
[372611551,1752703840581,-500.0,0.00019452,2]
[372611553,1752703840591,-8425.61108399,0.00019456,2]
[372611555,1752703840603,-278.19334511,0.00019471,2]
[372611557,1752703840614,-460.0,0.00019498,2]
[372611559,1752703840624,-460.0,0.00019498,2]
[372611561,1752703840634,-460.0,0.00019498,2]
[372611563,1752703840644,-723.37,0.00019498,2]
[372611565,1752703840654,-2206.53,0.00019498,2]
[372611567,1752703840663,-806.72,0.00019498,2]
[372611569,1752703840673,-5915.95,0.00019498,2]
[372611571,1752703840683,-922.08,0.00019498,2]
[372611573,1752703840692,-460.0,0.00019498,2]
[372611574,1752703840702,-954.12,0.00019498,2]
[372611575,1752703840712,-676.43,0.00019498,2]
[372611576,1752703840721,-3827.51,0.00019498,2]
[372611577,1752703840731,-2209.37,0.00019498,2]
[372611578,1752703840741,-692.19,0.00019498,2]
[372611579,1752703840751,-2403.55,0.00019498,2]
[372611580,1752703840760,-160.0,0.00019498,2]
[372611581,1752703840770,-2846.61,0.00019498,2]
[372611582,1752703840780,-2134.63,0.00019498,2]
[372611583,1752703840789,-1951.96,0.00019498,2]
[372611584,1752703840799,-460.0,0.00019498,2]
[372611585,1752703840808,-460.0,0.00019498,2]
[372611587,1752703840819,-460.0,0.00019498,2]
[372611589,1752703840828,-932.65,0.00019498,2]
[372611591,1752703840838,-460.0,0.00019498,2]
[372611593,1752703840847,-460.0,0.00019498,2]
[372611595,1752703840860,-4408.32,0.00019498,2]
[372611597,1752703840869,-460.0,0.00019498,2]
[372611599,1752703840879,-1691.23,0.00019498,2]
[372611601,1752703840888,-460.0,0.00019498,2]
[372611603,1752703840898,-487.61,0.00019498,2]
[372611605,1752703840907,-1895.95,0.00019498,2]
[372611607,1752703840916,-460.0,0.00019499,2]
[372611609,1752703840925,-460.0,0.00019499,2]
[372611611,1752703840936,-369.94020251,0.00019499,2]
[372611613,1752703840947,-194.22425545,0.00019499,2]
[372611615,1752703840956,-460.0,0.00019499,2]
[372611617,1752703840966,-782.03,0.00019499,2]
[372611619,1752703840975,-460.0,0.00019499,2]
[372611621,1752703840984,-460.0,0.00019499,2]
[372611623,1752703840994,-460.0,0.00019499,2]
[372611625,1752703841003,-460.0,0.00019499,2]
[372611627,1752703841012,-460.0,0.00019499,2]
[372611629,1752703841022,-460.0,0.00019499,2]
[372611631,1752703841031,-2309.09,0.00019499,2]
[372611632,1752703841040,-671.62,0.00019499,2]
[372611634,1752703841050,-9299.13,0.00019499,2]
[372611636,1752703841060,-460.0,0.00019499,2]
[372611638,1752703841069,-460.0,0.00019499,2]
[372611640,1752703841079,-460.0,0.00019499,2]
[372611642,1752703841089,-460.0,0.00019499,2]
[372611644,1752703841098,-1577.82,0.00019499,2]
[372611647,1752703841113,-3308.13,0.00019499,2]
[372611649,1752703841123,-335.79821645,0.00019499,2]
[372611651,1752703841132,-991.49,0.00019499,2]
[372611653,1752703841142,-1937.94,0.00019499,2]
[372611654,1752703841151,-1495.984315,0.00019499,2]
[372611657,1752703841161,-156.019409,0.00019499,2]
[372611658,1752703841171,-158.833951,0.00019499,2]
[372611661,1752703841182,-681.68,0.00019499,2]
[372611663,1752703841194,-1569.358429,0.00019499,2]
[372611665,1752703841204,-1586.796159,0.00019499,2]
[372611667,1752703841215,-2282.97,0.00019499,2]
[372611668,1752703841233,-2058.19,0.00019499,2]
[372611670,1752703841242,-7901.43,0.00019499,2]
[372611673,1752703841252,-2645.94,0.00019499,2]
[372611675,1752703841261,-460.0,0.00019499,2]
[372611677,1752703841270,-1675.98,0.00019499,2]
[372611679,1752703841280,-461.24,0.00019499,2]
[372611681,1752703841289,-516.82,0.00019499,2]